[Event "69th RUS-ch Women Higher League 2019"]
[Site "Yaroslavl"]
[Date "2019.07.01"]
[Round "5.3"]
[White "Dordzhieva, Dinara"]
[Black "Shuvalova, Polina"]
[Result "0-1"]
[ECO "A05"]
[WhiteElo "2306"]
[BlackElo "2418"]
[Annotator "NA"]
[PlyCount "152"]
[EventDate "2019.06.27"]
[EventType "swiss"]
[EventCountry "RUS"]
[SourceTitle "playchess.com"]
[Source "ChessBase"]
[SourceQuality "1"]
[TimeControl "40/5400+30:1800+30"]

1. Nf3 {[%emt 0:00:00]} Nf6 {[%emt 0:00:00]} 2. c4 {[%emt 0:00:00]} b6 {[%emt 0:00:00]} 3. g3 {[%emt 0:00:00]} c5 {[%emt 0:00:03]} 4. Bg2 {[%emt 0:00:00]} Bb7 {[%emt 0:00:01]} 5. O-O {[%emt 0:01:24]} g6 {[%emt 0:00:14]} 6. b3 {[%emt 0:04:53]} Bg7 {[%emt 0:00:05]} 7. Bb2 {[%emt 0:00:02]} O-O {[%emt 0:00:08]} 8. d4 {[%emt 0:03:15]} cxd4 {[%emt 0:00:31]} 9. Bxd4 {[%emt 0:00:18]} d6 {[%emt 0:03:01]} 10. Bb2 {[%emt 0:01:10]} Nbd7 {[%emt 0:00:24]} 11. Nc3 {[%emt 0:00:27]} a6 {[%emt 0:02:40]} 12. Qd2 {[%emt 0:02:26]} Rb8 {[%emt 0:12:38]} 13. Rac1 {[%emt 0:05:06]} b5 {[%emt 0:06:49]} 14. cxb5 {[%emt 0:02:03]} axb5 {[%emt 0:00:29]} 15. Nd4 {[%emt 0:00:20]} Bxg2 {[%emt 0:04:52]} 16. Kxg2 {[%emt 0:00:05]} Qa5 {[%emt 0:00:15]} 17. Nc6 {[%emt 0:08:36]} Qa8 {[%emt 0:00:35]} 18. Nd5 {[%emt 0:00:08]} Nxd5 {[%emt 0:03:03]} 19. Bxg7 {[%emt 0:01:54]} Kxg7 {[%emt 0:03:09]} 20. Qxd5 {[%emt 0:00:28]} Nf6 {[%emt 0:01:30]} 21. Qf3 {[%emt 0:01:12]} Rb6 {[%emt 0:08:02]} 22. Rc2 {[%emt 0:07:43]} Re8 {[%emt 0:09:33]} 23. Rfc1 {[%emt 0:05:18]} b4 {[%emt 0:02:13]} 24. Kg1 {[%emt 0:05:29]} e5 {[%emt 0:01:52]} 25. Qe3 {[%emt 0:12:56]} Qa6 {[%emt 0:05:55]} 26. Qd2 {[%emt 0:16:10]} Ne4 {[%emt 0:05:29]} 27. Qe3 {[%emt 0:00:04]} Nc5 {[%emt 0:07:50]} 28. Nd4 {[%emt 0:00:07]} Qa8 {[%emt 0:00:55]} 29. Nf3 {[%emt 0:00:57]} h6 {[%emt 0:04:38]} 30. h4 {[%emt 0:07:15]} h5 {[%emt 0:02:24]} 31. Nd2 {[%emt 0:02:16]} Ra6 {[%emt 0:02:22]} 32. Nc4 {[%emt 0:03:39]} Ne6 {[%emt 0:03:45]} 33. Nxd6 {[%emt 0:01:12]} Re7 {[%emt 0:05:58]} 34. Nc8 {[%emt 0:02:44]} Rd7 {[%emt 0:01:20]} 35. Qxe5+ {[%emt 0:01:18]} Kh7 {[%emt 0:00:29]} 36. Qb5 {[%emt 0:04:56]} Rb7 {[%emt 0:03:21]} 37. Qd5 {[%emt 0:00:56]} Qb8 {[%emt 0:00:35]} 38. e3 {[%emt 0:01:23]} Rb5 {[%emt 0:00:39]} 39. Qf3 {[%emt 0:00:38]} Rf5 {[%emt 0:00:22]} 40. Qe4 {[%emt 0:00:00]} Re5 {[%emt 0:00:00]} 41. Qd3 {[%emt 0:03:47]} Rea5 {[%emt 0:05:15]} 42. Qd7 {[%emt 0:02:14]} Kg7 {[%emt 0:02:55]} 43. Ne7 {[%emt 0:02:46]} Rxa2 {[%emt 0:07:25]} 44. Rc8 {[%emt 0:03:37]} Qd6 {[%emt 0:00:58]} 45. Qe8 {[%emt 0:03:12]} Kf6 {[%emt 0:00:31]} 46. Ng8+ {[%emt 0:02:20]} Kg7 {[%emt 0:00:13]} 47. Nh6 {[%emt 0:03:22]} Qf8 {[%emt 0:00:12]} 48. Qd7 {[%emt 0:04:00]} Rd6 {[%emt 0:06:14]} 49. Qb5 {[%emt 0:06:23]} Rd8 {[%emt 0:00:36]} 50. Rxd8 {[%emt 0:01:05]} Qxd8 {[%emt 0:00:53]} 51. Nxf7 {[%emt 0:00:56]} Qf6 {[%emt 0:03:10]} 52. Qe5 {[%emt 0:01:25]} Kxf7 {[%emt 0:00:11]} 53. Qxf6+ {[%emt 0:00:04]} Kxf6 {[%emt 0:00:04]} 54. Rc4 {[%emt 0:00:02]} Rb2 {[%emt 0:02:14]} 55. Rxb4 {[%emt 0:00:03]} Nc5 {[%emt 0:00:14]} 56. Rb6+ {[%emt 0:01:11]} Kg7 {[%emt 0:00:25]} 57. Kg2 {[%emt 0:01:47]} Ne4 {[%emt 0:04:17]} 58. Rb7+ {[%emt 0:00:10]} Kf6 {[%emt 0:00:04]} 59. Rb6+ {[%emt 0:00:10]} Kg7 {[%emt 0:01:01]} 60. Rb7+ {[%emt 0:00:03]} Kh6 {[%emt 0:00:26]} 61. Kf3 {[%emt 0:02:25]} Nxf2 {[%emt 0:00:41]} 62. b4 {[%emt 0:00:07]} Ng4 {[%emt 0:00:47]} 63. Kf4 {[%emt 0:00:55]} Rf2+ {[%emt 0:02:27]} 64. Ke4 {[%emt 0:00:02]} Re2 {[%emt 0:00:07]} 65. b5 {[%emt 0:00:02]} Rxe3+ {[%emt 0:00:06]} 66. Kf4 {[%emt 0:00:46]} Rb3 {[%emt 0:00:20]} 67. Rb6 {[%emt 0:01:15]} Rb4+ {[%emt 0:00:24]} 68. Kf3 {[%emt 0:00:06]} Ne5+ {[%emt 0:00:08]} 69. Kg2 {[%emt 0:00:06]} Rb2+ {[%emt 0:00:05]} 70. Kg1 {[%emt 0:00:12]} Nc4 {[%emt 0:00:57]} 71. Rb8 {[%emt 0:00:08]} Nd6 {[%emt 0:00:29]} 72. b6 {[%emt 0:00:04]} Nf5 {[%emt 0:00:07]} 73. g4 {[%emt 0:01:20]} hxg4 {[%emt 0:00:22]} 74. Kf1 {[%emt 0:00:06]} g3 {[%emt 0:00:25]} 75. b7 {[%emt 0:00:08]} Ne3+ {[%emt 0:00:37]} 76. Ke1 {[%emt 0:00:11]} g2 {[%emt 0:00:18]} 0-1

[Event "69th RUS-ch Women Higher League 2019"]
[Site "Yaroslavl"]
[Date "2019.07.01"]
[Round "5.4"]
[White "Kovalevskaya, Ekaterina"]
[Black "Borisova, Ekaterina"]
[Result "1-0"]
[ECO "B53"]
[WhiteElo "2413"]
[BlackElo "2267"]
[Annotator "NA"]
[PlyCount "75"]
[EventDate "2019.06.27"]
[EventType "swiss"]
[EventCountry "RUS"]
[SourceTitle "playchess.com"]
[Source "ChessBase"]
[SourceQuality "1"]
[TimeControl "40/5400+30:1800+30"]

1. e4 {[%emt 0:00:00]} c5 {[%emt 0:00:00]} 2. Nf3 {[%emt 0:00:00]} d6 {[%emt 0:00:00]} 3. d4 {[%emt 0:00:00]} cxd4 {[%emt 0:00:00]} 4. Qxd4 {[%emt 0:00:05]} Nc6 {[%emt 0:00:00]} 5. Bb5 {[%emt 0:00:20]} Bd7 {[%emt 0:00:00]} 6. Qd3 {[%emt 0:01:10]} Nf6 {[%emt 0:01:05]} 7. c4 {[%emt 0:02:57]} g6 {[%emt 0:00:08]} 8. Nc3 {[%emt 0:02:13]} Bg7 {[%emt 0:00:08]} 9. O-O {[%emt 0:00:10]} O-O {[%emt 0:01:01]} 10. h3 {[%emt 0:01:53]} Rc8 {[%emt 0:01:13]} 11. Be3 {[%emt 0:00:23]} a6 {[%emt 0:02:06]} 12. Bxc6 {[%emt 0:00:16]} Bxc6 {[%emt 0:00:12]} 13. Rac1 {[%emt 0:05:27]} Nd7 {[%emt 0:08:26]} 14. Nd4 {[%emt 0:04:03]} Nc5 {[%emt 0:03:22]} 15. Qc2 {[%emt 0:00:30]} Ne6 {[%emt 0:07:03]} 16. Nxe6 {[%emt 0:09:02]} fxe6 {[%emt 0:00:04]} 17. Qb3 {[%emt 0:00:34]} Qe8 {[%emt 0:14:32]} 18. f3 {[%emt 0:10:45]} Qf7 {[%emt 0:01:20]} 19. Ne2 {[%emt 0:07:08]} Be5 {[%emt 0:10:01]} 20. Nd4 {[%emt 0:19:35]} Bxd4 {[%emt 0:07:50]} 21. Bxd4 {[%emt 0:00:03]} e5 {[%emt 0:00:07]} 22. Bb6 {[%emt 0:01:34]} Bd7 {[%emt 0:00:56]} 23. Qd3 {[%emt 0:03:23]} Rc6 {[%emt 0:06:37]} 24. Be3 {[%emt 0:00:10]} b5 {[%emt 0:10:51]} 25. cxb5 {[%emt 0:04:04]} Rxc1 {[%emt 0:00:18]} 26. Rxc1 {[%emt 0:00:05]} Bxb5 {[%emt 0:00:13]} 27. Qa3 {[%emt 0:04:38]} Qe6 {[%emt 0:03:43]} 28. Bh6 {[%emt 0:05:00]} Rc8 {[%emt 0:00:55]} 29. b3 {[%emt 0:00:09]} Qd7 {[%emt 0:04:24]} 30. Kh2 {[%emt 0:03:47]} Rc6 {[%emt 0:01:50]} 31. Rxc6 {[%emt 0:00:55]} Qxc6 {[%emt 0:00:07]} 32. Qa5 {[%emt 0:00:26]} Kf7 {[%emt 0:03:49]} 33. a4 {[%emt 0:04:05]} Bd3 {[%emt 0:00:52]} 34. Qd8 {[%emt 0:00:36]} Qe8 {[%emt 0:00:57]} 35. Qc7 {[%emt 0:00:11]} Kf6 {[%emt 0:06:19]} 36. Qc3 {[%emt 0:04:43]} Bb1 {[%emt 0:00:34]} 37. Qc1 {[%emt 0:00:10]} Ba2 {[%emt 0:00:47]} 38. Bg5+ {[%emt 0:00:10]} 1-0

[Event "69th RUS-ch Women Higher League 2019"]
[Site "Yaroslavl"]
[Date "2019.07.01"]
[Round "5.5"]
[White "Protopopova, Anastasiya"]
[Black "Guseva, Marina"]
[Result "1-0"]
[ECO "D43"]
[WhiteElo "2272"]
[BlackElo "2379"]
[Annotator "NA"]
[PlyCount "61"]
[EventDate "2019.06.27"]
[EventType "swiss"]
[EventCountry "RUS"]
[SourceTitle "playchess.com"]
[Source "ChessBase"]
[SourceQuality "1"]
[TimeControl "40/5400+30:1800+30"]

1. d4 {[%emt 0:00:00]} d5 {[%emt 0:00:00]} 2. c4 {[%emt 0:00:02]} c6 {[%emt 0:00:00]} 3. Nf3 {[%emt 0:00:04]} Nf6 {[%emt 0:00:00]} 4. Nc3 {[%emt 0:00:04]} e6 {[%emt 0:00:00]} 5. Bg5 {[%emt 0:00:06]} Nbd7 {[%emt 0:00:00]} 6. cxd5 {[%emt 0:00:09]} exd5 {[%emt 0:00:00]} 7. e3 {[%emt 0:00:04]} Be7 {[%emt 0:00:00]} 8. Qc2 {[%emt 0:00:04]} Nh5 {[%emt 0:00:13]} 9. h4 {[%emt 0:00:10]} Ndf6 {[%emt 0:00:20]} 10. Ne5 {[%emt 0:00:34]} h6 {[%emt 0:15:14]} 11. Be2 {[%emt 0:00:30]} Be6 {[%emt 0:08:21]} 12. O-O-O {[%emt 0:00:13]} g6 {[%emt 0:04:32]} 13. g4 {[%emt 0:12:12]} Ng3 {[%emt 0:15:07]} 14. fxg3 {[%emt 0:02:53]} hxg5 {[%emt 0:00:29]} 15. hxg5 {[%emt 0:01:53]} Rxh1 {[%emt 0:00:04]} 16. Rxh1 {[%emt 0:00:07]} Nd7 {[%emt 0:01:49]} 17. Nxg6 {[%emt 0:25:15]} fxg6 {[%emt 0:01:31]} 18. Qxg6+ {[%emt 0:00:37]} Bf7 {[%emt 0:00:03]} 19. Rh8+ {[%emt 0:02:42]} Nf8 {[%emt 0:15:02]} 20. Qg7 {[%emt 0:08:34]} Qd6 {[%emt 0:01:10]} 21. Bd3 {[%emt 0:09:27]} Qxg3 {[%emt 0:07:18]} 22. g6 {[%emt 0:03:00]} Qxe3+ {[%emt 0:00:50]} 23. Kc2 {[%emt 0:00:16]} Be6 {[%emt 0:04:06]} 24. Qe5 {[%emt 0:24:55]} Qxe5 {[%emt 0:20:13]} 25. dxe5 {[%emt 0:00:02]} O-O-O {[%emt 0:01:55]} 26. g7 {[%emt 0:03:15]} Nd7 {[%emt 0:00:41]} 27. Bf5 {[%emt 0:02:06]} Bg8 {[%emt 0:01:04]} 28. Ne2 {[%emt 0:00:21]} Kc7 {[%emt 0:01:21]} 29. Nd4 {[%emt 0:00:17]} Nf6 {[%emt 0:02:32]} 30. Ne6+ {[%emt 0:01:13]} Bxe6 {[%emt 0:00:16]} 31. Bxe6 {[%emt 0:00:09]} 1-0

[Event "69th RUS-ch Women Higher League 2019"]
[Site "Yaroslavl"]
[Date "2019.07.01"]
[Round "5.6"]
[White "Gritsayeva, Oksana"]
[Black "Potapova, Margarita"]
[Result "1/2-1/2"]
[ECO "A46"]
[WhiteElo "2381"]
[BlackElo "2256"]
[Annotator "NA"]
[PlyCount "79"]
[EventDate "2019.06.27"]
[EventType "swiss"]
[EventCountry "RUS"]
[SourceTitle "playchess.com"]
[Source "ChessBase"]
[SourceQuality "1"]
[TimeControl "40/5400+30:1800+30"]

1. d4 {[%emt 0:00:00]} Nf6 {[%emt 0:00:00]} 2. Nf3 {[%emt 0:00:00]} d5 {[%emt 0:04:07]} 3. c4 {[%emt 0:00:00]} e6 {[%emt 0:00:12]} 4. e3 {[%emt 0:00:02]} a6 {[%emt 0:03:59]} 5. Nc3 {[%emt 0:05:16]} dxc4 {[%emt 0:05:12]} 6. Bxc4 {[%emt 0:02:12]} b5 {[%emt 0:01:44]} 7. Bd3 {[%emt 0:02:10]} Bb7 {[%emt 0:01:44]} 8. Qc2 {[%emt 0:06:10]} Nbd7 {[%emt 0:01:01]} 9. a4 {[%emt 0:07:39]} b4 {[%emt 0:00:38]} 10. Ne4 {[%emt 0:00:38]} c5 {[%emt 0:12:13]} 11. dxc5 {[%emt 0:09:04]} Rc8 {[%emt 0:04:56]} 12. Nxf6+ {[%emt 0:06:29]} Qxf6 {[%emt 0:03:56]} 13. c6 {[%emt 0:01:19]} Rxc6 {[%emt 0:02:05]} 14. Qe2 {[%emt 0:01:22]} Nc5 {[%emt 0:04:02]} 15. Bc4 {[%emt 0:05:08]} Rc8 {[%emt 0:09:55]} 16. O-O {[%emt 0:01:15]} Bd6 {[%emt 0:02:03]} 17. Rd1 {[%emt 0:04:22]} Bb8 {[%emt 0:02:49]} 18. Bd2 {[%emt 0:01:34]} a5 {[%emt 0:09:03]} 19. Bb5+ {[%emt 0:05:02]} Kf8 {[%emt 0:00:22]} 20. Rac1 {[%emt 0:04:14]} g5 {[%emt 0:01:43]} 21. e4 {[%emt 0:03:33]} g4 {[%emt 0:01:21]} 22. Ne1 {[%emt 0:02:39]} Qe5 {[%emt 0:05:55]} 23. Qxg4 {[%emt 0:06:49]} Qxh2+ {[%emt 0:00:41]} 24. Kf1 {[%emt 0:00:04]} Rg8 {[%emt 0:01:37]} 25. Qh3 {[%emt 0:00:36]} Qxh3 {[%emt 0:00:28]} 26. gxh3 {[%emt 0:00:04]} Kg7 {[%emt 0:08:40]} 27. f3 {[%emt 0:02:54]} Be5 {[%emt 0:01:29]} 28. Be3 {[%emt 0:02:01]} Nb3 {[%emt 0:00:20]} 29. Rxc8 {[%emt 0:00:24]} Rxc8 {[%emt 0:00:17]} 30. Rd7 {[%emt 0:03:31]} Bc6 {[%emt 0:02:50]} 31. Bxc6 {[%emt 0:00:00]} Rxc6 {[%emt 0:00:03]} 32. Nd3 {[%emt 0:00:08]} Bc7 {[%emt 0:01:31]} 33. Ke2 {[%emt 0:01:15]} Kf8 {[%emt 0:00:45]} 34. Bg5 {[%emt 0:05:57]} Ke8 {[%emt 0:01:12]} 35. Re7+ {[%emt 0:00:07]} Kf8 {[%emt 0:00:03]} 36. Rd7 {[%emt 0:00:26]} Ke8 {[%emt 0:01:15]} 37. Re7+ {[%emt 0:00:06]} Kf8 {[%emt 0:00:05]} 38. Rd7 {[%emt 0:00:04]} Ke8 {[%emt 0:00:03]} 39. Re7+ {[%emt 0:00:16]} Kf8 {[%emt 0:00:03]} 40. Rd7 1/2-1/2

[Event "69th RUS-ch Women Higher League 2019"]
[Site "Yaroslavl"]
[Date "2019.07.01"]
[Round "5.7"]
[White "Nosacheva, Mariya"]
[Black "Galliamova, Alisa"]
[Result "0-1"]
[ECO "B25"]
[WhiteElo "2150"]
[BlackElo "2444"]
[Annotator "NA"]
[PlyCount "50"]
[EventDate "2019.06.27"]
[EventType "swiss"]
[EventCountry "RUS"]
[SourceTitle "playchess.com"]
[Source "ChessBase"]
[SourceQuality "1"]
[TimeControl "40/5400+30:1800+30"]

1. e4 {[%emt 0:00:00]} c5 {[%emt 0:00:00]} 2. Nc3 {[%emt 0:00:00]} d6 {[%emt 0:00:01]} 3. g3 {[%emt 0:00:22]} Nc6 {[%emt 0:03:37]} 4. Bg2 {[%emt 0:01:07]} g6 {[%emt 0:00:33]} 5. d3 {[%emt 0:00:10]} Bg7 {[%emt 0:00:14]} 6. f4 {[%emt 0:00:09]} Bd7 {[%emt 0:15:02]} 7. Be3 {[%emt 0:14:21]} Nd4 {[%emt 0:04:34]} 8. Qd2 {[%emt 0:05:22]} Qa5 {[%emt 0:04:29]} 9. Nge2 {[%emt 0:04:51]} Rc8 {[%emt 0:09:05]} 10. O-O {[%emt 0:05:45]} e6 {[%emt 0:03:27]} 11. Nc1 {[%emt 0:19:45]} Ne7 {[%emt 0:06:04]} 12. Qf2 {[%emt 0:00:54]} O-O {[%emt 0:01:54]} 13. Nd1 {[%emt 0:01:46]} Ba4 {[%emt 0:09:54]} 14. Bd2 {[%emt 0:04:25]} Qb6 {[%emt 0:01:19]} 15. c3 {[%emt 0:03:09]} Bxd1 {[%emt 0:01:55]} 16. Rxd1 {[%emt 0:02:33]} Qxb2 {[%emt 0:10:53]} 17. Nb3 {[%emt 0:06:33]} Nxb3 {[%emt 0:03:07]} 18. axb3 {[%emt 0:00:10]} Bxc3 {[%emt 0:02:20]} 19. Bxc3 {[%emt 0:05:18]} Qxc3 {[%emt 0:00:06]} 20. Rxa7 {[%emt 0:00:15]} Qxb3 {[%emt 0:01:55]} 21. Qf1 {[%emt 0:00:10]} Qb6 {[%emt 0:00:52]} 22. Ra2 {[%emt 0:00:51]} c4+ {[%emt 0:09:48]} 23. Kh1 {[%emt 0:04:54]} c3 {[%emt 0:02:30]} 24. Rb1 {[%emt 0:01:31]} Qe3 {[%emt 0:01:02]} 25. Qd1 {[%emt 0:00:52]} Nc6 {[%emt 0:03:08]} 0-1

[Event "69th RUS-ch Women Higher League 2019"]
[Site "Yaroslavl"]
[Date "2019.07.01"]
[Round "5.8"]
[White "Goltseva, Ekaterina"]
[Black "Belenkaya, Dina"]
[Result "1-0"]
[ECO "A06"]
[WhiteElo "2304"]
[BlackElo "2321"]
[Annotator "NA"]
[PlyCount "131"]
[EventDate "2019.06.27"]
[EventType "swiss"]
[EventCountry "RUS"]
[SourceTitle "playchess.com"]
[Source "ChessBase"]
[SourceQuality "1"]
[TimeControl "40/5400+30:1800+30"]

1. Nf3 {[%emt 0:00:00]} d5 {[%emt 0:00:07]} 2. g3 {[%emt 0:00:04]} g6 {[%emt 0:00:06]} 3. Bg2 {[%emt 0:00:12]} Bg7 {[%emt 0:00:07]} 4. d4 {[%emt 0:00:09]} Nf6 {[%emt 0:00:04]} 5. O-O {[%emt 0:00:09]} O-O {[%emt 0:00:15]} 6. Nbd2 {[%emt 0:00:22]} c6 {[%emt 0:00:27]} 7. c4 {[%emt 0:00:35]} Qb6 {[%emt 0:03:02]} 8. e3 {[%emt 0:05:33]} Bf5 {[%emt 0:01:30]} 9. Ne5 {[%emt 0:05:39]} Rd8 {[%emt 0:01:30]} 10. cxd5 {[%emt 0:17:49]} cxd5 {[%emt 0:00:37]} 11. Nb3 {[%emt 0:10:08]} Nc6 {[%emt 0:15:00]} 12. Bd2 {[%emt 0:03:14]} Rdc8 {[%emt 0:15:34]} 13. Bc3 {[%emt 0:10:21]} a5 {[%emt 0:03:48]} 14. Nd3 {[%emt 0:03:34]} Qb5 {[%emt 0:03:36]} 15. Nf4 {[%emt 0:05:45]} a4 {[%emt 0:02:49]} 16. Nd2 {[%emt 0:00:41]} Na5 {[%emt 0:16:10]} 17. Rc1 {[%emt 0:08:04]} e6 {[%emt 0:02:27]} 18. Re1 {[%emt 0:02:11]} Bf8 {[%emt 0:02:43]} 19. Bf1 {[%emt 0:01:39]} Qd7 {[%emt 0:01:19]} 20. f3 {[%emt 0:02:09]} g5 {[%emt 0:01:12]} 21. Nd3 {[%emt 0:00:38]} b5 {[%emt 0:08:12]} 22. Ne5 {[%emt 0:03:23]} Qb7 {[%emt 0:00:40]} 23. Bxa5 {[%emt 0:01:21]} Rxa5 {[%emt 0:00:21]} 24. Rxc8 {[%emt 0:02:22]} Qxc8 {[%emt 0:00:03]} 25. e4 {[%emt 0:00:13]} Bg6 {[%emt 0:02:23]} 26. Bd3 {[%emt 0:02:14]} b4 {[%emt 0:01:15]} 27. Nf1 {[%emt 0:03:58]} Qb7 {[%emt 0:01:21]} 28. Nxg6 {[%emt 0:00:43]} hxg6 {[%emt 0:00:06]} 29. e5 {[%emt 0:01:15]} Nd7 {[%emt 0:00:31]} 30. Qd2 {[%emt 0:00:21]} Qb6 {[%emt 0:00:46]} 31. Qe3 {[%emt 0:04:03]} b3 {[%emt 0:01:27]} 32. a3 {[%emt 0:00:28]} Ra8 {[%emt 0:00:30]} 33. Rc1 {[%emt 0:01:12]} Be7 {[%emt 0:01:09]} 34. Kg2 {[%emt 0:01:07]} Kg7 {[%emt 0:00:42]} 35. g4 {[%emt 0:01:26]} Rh8 {[%emt 0:01:21]} 36. Ng3 {[%emt 0:00:37]} Nb8 {[%emt 0:04:10]} 37. Ne2 {[%emt 0:00:54]} Nc6 {[%emt 0:00:27]} 38. Rf1 {[%emt 0:02:22]} Bd8 {[%emt 0:05:13]} 39. f4 {[%emt 0:00:48]} gxf4 {[%emt 0:02:18]} 40. Qxf4 {[%emt 0:00:00]} Qb7 {[%emt 0:00:00]} 41. Nc3 {[%emt 0:06:46]} g5 {[%emt 0:20:50]} 42. Qf2 {[%emt 0:03:16]} Qa7 {[%emt 0:04:01]} 43. Nb5 {[%emt 0:07:48]} Qe7 {[%emt 0:00:10]} 44. Nd6 {[%emt 0:01:43]} Bb6 {[%emt 0:05:10]} 45. Qd2 {[%emt 0:02:09]} Nd8 {[%emt 0:02:23]} 46. Rf6 {[%emt 0:03:37]} Bxd4 {[%emt 0:00:50]} 47. Qxg5+ {[%emt 0:00:10]} Kf8 {[%emt 0:00:04]} 48. Bg6 {[%emt 0:01:20]} Bxb2 {[%emt 0:00:29]} 49. Bxf7 {[%emt 0:00:38]} Nxf7 {[%emt 0:00:39]} 50. Rxf7+ {[%emt 0:00:11]} Qxf7 {[%emt 0:00:06]} 51. Nxf7 {[%emt 0:00:08]} Kxf7 {[%emt 0:00:16]} 52. Qf6+ {[%emt 0:00:56]} Kg8 {[%emt 0:00:05]} 53. Qxe6+ {[%emt 0:03:43]} Kg7 {[%emt 0:00:08]} 54. Qf6+ {[%emt 0:00:18]} Kg8 {[%emt 0:01:11]} 55. Qg6+ {[%emt 0:03:04]} Kf8 {[%emt 0:00:01]} 56. e6 {[%emt 0:00:53]} Ke7 {[%emt 0:00:12]} 57. Qf7+ {[%emt 0:00:04]} Kd6 {[%emt 0:00:06]} 58. e7 {[%emt 0:00:31]} Bxa3 {[%emt 0:00:58]} 59. Qf6+ {[%emt 0:01:35]} Kd7 {[%emt 0:00:18]} 60. Qxh8 {[%emt 0:00:28]} Bxe7 {[%emt 0:01:44]} 61. Qd4 {[%emt 0:00:20]} Kd8 {[%emt 0:04:30]} 62. Qxd5+ {[%emt 0:00:27]} Ke8 {[%emt 0:00:31]} 63. Qb5+ {[%emt 0:00:09]} Kf8 {[%emt 0:00:20]} 64. Qxa4 {[%emt 0:00:06]} b2 {[%emt 0:00:04]} 65. Qb5 {[%emt 0:00:45]} Bf6 {[%emt 0:00:09]} 66. Kf3 {[%emt 0:00:14]} 1-0

[Event "69th RUS-ch Women Higher League 2019"]
[Site "Yaroslavl"]
[Date "2019.07.01"]
[Round "5.9"]
[White "Voit, Daria"]
[Black "Dimitrova, Aleksandra"]
[Result "1-0"]
[ECO "A13"]
[WhiteElo "2339"]
[BlackElo "2273"]
[Annotator "NA"]
[PlyCount "83"]
[EventDate "2019.06.27"]
[EventType "swiss"]
[EventCountry "RUS"]
[SourceTitle "playchess.com"]
[Source "ChessBase"]
[SourceQuality "1"]
[TimeControl "40/5400+30:1800+30"]

1. Nf3 {[%emt 0:00:00]} Nf6 {[%emt 0:00:00]} 2. c4 {[%emt 0:00:00]} e6 {[%emt 0:00:00]} 3. g3 {[%emt 0:00:00]} d5 {[%emt 0:00:22]} 4. Bg2 {[%emt 0:00:00]} dxc4 {[%emt 0:01:07]} 5. Qa4+ {[%emt 0:00:00]} Nbd7 {[%emt 0:01:20]} 6. Qxc4 {[%emt 0:00:03]} a6 {[%emt 0:00:23]} 7. Qb3 {[%emt 0:00:19]} c5 {[%emt 0:06:40]} 8. a4 {[%emt 0:00:11]} Bd6 {[%emt 0:02:33]} 9. d3 {[%emt 0:00:08]} Rb8 {[%emt 0:02:26]} 10. a5 {[%emt 0:00:07]} Bc7 {[%emt 0:03:06]} 11. Bd2 {[%emt 0:00:12]} O-O {[%emt 0:01:55]} 12. O-O {[%emt 0:00:05]} Nd5 {[%emt 0:08:01]} 13. Nc3 {[%emt 0:03:10]} Nb4 {[%emt 0:05:38]} 14. Ne4 {[%emt 0:03:30]} Nc6 {[%emt 0:11:09]} 15. Qa3 {[%emt 0:05:06]} b6 {[%emt 0:10:48]} 16. axb6 {[%emt 0:00:49]} Rxb6 {[%emt 0:00:45]} 17. Be3 {[%emt 0:05:11]} Nb4 {[%emt 0:04:56]} 18. Rfc1 {[%emt 0:00:44]} Nd5 {[%emt 0:00:55]} 19. Bxc5 {[%emt 0:09:01]} Nxc5 {[%emt 0:00:06]} 20. Nxc5 {[%emt 0:00:10]} e5 {[%emt 0:03:42]} 21. Nd2 {[%emt 0:11:23]} Rg6 {[%emt 0:09:23]} 22. Nf1 {[%emt 0:17:09]} Bb6 {[%emt 0:04:09]} 23. Qb3 {[%emt 0:02:11]} Nc7 {[%emt 0:01:26]} 24. Ne3 {[%emt 0:03:55]} Nb5 {[%emt 0:01:51]} 25. Qd1 {[%emt 0:19:23]} Nd4 {[%emt 0:04:22]} 26. b4 {[%emt 0:03:42]} f5 {[%emt 0:04:38]} 27. Nc4 {[%emt 0:02:52]} f4 {[%emt 0:01:50]} 28. Nxe5 {[%emt 0:00:51]} Rh6 {[%emt 0:03:31]} 29. e3 {[%emt 0:01:58]} fxg3 {[%emt 0:00:57]} 30. hxg3 {[%emt 0:02:33]} Qf6 {[%emt 0:00:38]} 31. f4 {[%emt 0:00:29]} Nf5 {[%emt 0:00:46]} 32. Ng4 {[%emt 0:01:25]} Qg6 {[%emt 0:01:21]} 33. Nxh6+ {[%emt 0:00:03]} gxh6 {[%emt 0:00:05]} 34. Qf3 {[%emt 0:02:19]} Nxg3 {[%emt 0:00:33]} 35. Kf2 {[%emt 0:00:14]} Nf5 {[%emt 0:00:09]} 36. Bh3 {[%emt 0:02:56]} Kh8 {[%emt 0:02:20]} 37. Rg1 {[%emt 0:01:18]} Qf6 {[%emt 0:00:27]} 38. Bxf5 {[%emt 0:00:13]} Bxf5 {[%emt 0:00:12]} 39. Rxa6 {[%emt 0:02:28]} Qb2+ {[%emt 0:00:46]} 40. Qe2 {[%emt 0:00:00]} Qxb4 {[%emt 0:00:00]} 41. Ra4 {[%emt 0:09:17]} Qc3 {[%emt 0:02:54]} 42. Ne4 {[%emt 0:04:32]} 1-0